Workbook

Sheet Лист1
A1: Модель | B1: маг | C1: поворот 90 | D1: цена | E1: ips va | F1: ярк | G1: мс | H1: герц | I1: ширина | J1: вес без подставки | K1: вес с подставкой | L1: короб | M1: звук | N1: 2 мон | O1: 2 мон + подставки | P1: 2 мон + спец подставка
A4: LG 32GP850-B | B4: AM | C4: + | D4: 387 | E4: ips | F4: 350 | G4: 1 | H4: 180 | I4: 715 | J4: 4.8 | K4: 7.2 | L4: 10.1 | M4: - | N4: =2*J4 -> 9.6 | O4: =K4*2 -> 14.4 | P4: =J4*2+5 -> 14.6
A5: Samsung S32A600NWU | B5: CU | C5: + | D5: 241 | E5: va | F5: 300 | G5: 5 | H5: 75 | I5: 716 | J5: 4.8 | K5: 6.9 | L5: 9 | M5: - | N5: =2*J5 -> 9.6 | O5: =K5*2 -> 13.8 | P5: =J5*2+5 -> 14.6
A6: Samsung S32A600UUU | B6: CU | C6: + | D6: 285 | E6: va | F6: 300 | G6: 5 | H6: 75 | I6: 716 | J6: 5 | K6: 7.2 | L6: 9.2 | M6: - | N6: =2*J6 -> 10 | O6: =K6*2 -> 14.4 | P6: =J6*2+5 -> 15
A7: LG 32GN650-B | B7: CU | C7: + | D7: 245 | E7: va | F7: 350 | G7: 5 | H7: 165 | I7: 715 | J7: 5.1 | K7: 7.2 | L7: 10.3 | M7: - | N7: =2*J7 -> 10.2 | O7: =K7*2 -> 14.4 | P7: =J7*2+5 -> 15.2
A8: Acer RG321QU Pbiipx | B8: AM | C8: - | D8: 380 | E8: ips | F8: 250 | G8: 1 | H8: 170 | I8: 712 | J8: 5.2 | K8: 5.9 | L8: 8 | M8: - | N8: =2*J8 -> 10.4 | O8: =K8*2 -> 11.8 | P8: =J8*2+5 -> 15.4
A9: LG 32GN600-B | B9: AM | C9: - | D9: 296 | E9: va | F9: 300 | G9: 5 | H9: 165 | I9: 715 | J9: 5.2 | K9: 5.9 | L9: 8.3 | M9: - | N9: =2*J9 -> 10.4 | O9: =K9*2 -> 11.8 | P9: =J9*2+5 -> 15.4
A10: LG 32GN600 | B10: CU | C10: - | D10: 202 | E10: va | F10: 300 | G10: 5 | H10: 165 | I10: 715 | J10: 5.2 | K10: 5.9 | L10: 8.3 | M10: - | N10: =2*J10 -> 10.4 | O10: =K10*2 -> 11.8 | P10: =J10*2+5 -> 15.4
A12: LG 32BK50Q | B12: AM | C12: - | D12: 280 | E12: ips | F12: 300 | G12: 8 | H12: 75 | I12: 724 | J12: 5.4 | K12: 5.7 | L12: 7.5 | M12: - | N12: =2*J12 -> 10.8 | O12: =K12*2 -> 11.4 | P12: =J12*2+5 -> 15.8
A13: ViewSonic VX3276-2K-MHD-2 | B13: CU | C13: - | D13: 245 | E13: ips | F13: 250 | G13: 4 | H13: 75 | I13: 713 | J13: 5.6 | K13: 6.2 | L13: 8.2 | M13: да | N13: =2*J13 -> 11.2 | O13: =K13*2 -> 12.4 | P13: =J13*2+5 -> 16.2
A15: Lenovo D32qc-20 | B15: CU | C15: - | D15: 216 | E15: va | F15: 250 | G15: 4 | H15: 75 | I15: 710 | J15: 6 | K15: 7.4 | L15: 10.3 | M15: - | N15: =2*J15 -> 12 | O15: =K15*2 -> 14.8 | P15: =J15*2+5 -> 17
A16: asus VP32AQ | B16: AM | C16: - | D16: 270 | E16: ips | F16: 350 | G16: 5 | H16: 75 | I16: 715 | J16: 6.2 | K16: 7.8 | L16: 9.8 | M16: да | N16: =2*J16 -> 12.4 | O16: =K16*2 -> 15.6 | P16: =J16*2+5 -> 17.4
A17: ASUS VP32AQ | B17: CU | C17: - | D17: 255/305 | E17: ips | F17: 350 | G17: 5 | H17: 75 | I17: 715 | J17: 6.2 | K17: 7.8 | L17: 9.8 | M17: да | N17: =2*J17 -> 12.4 | O17: =K17*2 -> 15.6 | P17: =J17*2+5 -> 17.4
A18: asus VG32AQL1A | B18: AM | C18: - | D18: 289 | E18: ips | F18: 350 | G18: 1 | H18: 170 | I18: 716 | J18: 6.2 | K18: 8.6 | L18: 12.4 | M18: да | N18: =2*J18 -> 12.4 | O18: =K18*2 -> 17.2 | P18: =J18*2+5 -> 17.4
A19: ASUS VG32AQL1A | B19: AM | C19: - | D19: 379 | E19: ips | F19: 350 | G19: 1 | H19: 170 | I19: 716 | J19: 6.2 | K19: 8.6 | L19: 12.4 | M19: да | N19: =2*J19 -> 12.4 | O19: =K19*2 -> 17.2 | P19: =J19*2+5 -> 17.4
A20: asus VG32AQL1A | B20: NE | C20: - | D20: 379 | E20: ips | F20: 350 | G20: 1 | H20: 170 | I20: 716 | J20: 6.2 | K20: 8.6 | L20: 12.4 | M20: да | N20: =2*J20 -> 12.4 | O20: =K20*2 -> 17.2 | P20: =J20*2+5 -> 17.4
A21: LG 32QN600-B | B21: AM | C21: - | D21: 200 | E21: ips | F21: 350 | G21: 5 | H21: 75 | I21: 714 | J21: 6.3 | K21: 7.2 | L21: 10.7 | M21: - | N21: =2*J21 -> 12.6 | O21: =K21*2 -> 14.4 | P21: =J21*2+5 -> 17.6
A22: HP x32 | B22: AM | C22: + | D22: 260 | E22: ips | F22: 400 | G22: 1 | H22: 165 | I22: 714 | J22: 6.3 | K22: 7.9 | L22: 12.8 | M22: - | N22: =2*J22 -> 12.6 | O22: =K22*2 -> 15.8 | P22: =J22*2+5 -> 17.6
A23: LG 32QP880-B | B23: CU | C23: + | D23: 322 | E23: ips | F23: 350 | G23: 5 | H23: 75 | I23: 714 | J23: 6.3 | K23: 11 | L23: 15 | M23: да | N23: =2*J23 -> 12.6 | O23: =K23*2 -> 22 | P23: =J23*2+5 -> 17.6
A26: LG 32GK650F | B26: AM | C26: + | D26: 250 | E26: va | F26: 350 | G26: 5 | H26: 144 | I26: 715 | J26: 6.5 | K26: 8.3 | L26: 12.1 | M26: - | N26: =2*J26 -> 13 | O26: =K26*2 -> 16.6 | P26: =J26*2+5 -> 18
A27: LG 32GK650F | B27: AM | C27: + | D27: 309 | E27: va | F27: 350 | G27: 1 | H27: 144 | I27: 715 | J27: 6.5 | K27: 8.3 | L27: 12.1 | M27: - | N27: =2*J27 -> 13 | O27: =K27*2 -> 16.6 | P27: =J27*2+5 -> 18
A28: LG 32GK850F-B | B28: CU | C28: + | D28: 292 | E28: va | F28: 400 | G28: 5 | H28: 144 | I28: 715 | J28: 6.5 | K28: 8.3 | L28: 12.1 | M28: - | N28: =2*J28 -> 13 | O28: =K28*2 -> 16.6 | P28: =J28*2+5 -> 18
A29: LG 32GK65B-B | B29: AM | C29: + | D29: 384 | F29: 350 | G29: 5 | H29: 144 | I29: 716 | J29: 6.5 | K29: 8.3 | L29: 12.2 | M29: - | N29: =2*J29 -> 13 | O29: =K29*2 -> 16.6 | P29: =J29*2+5 -> 18
A30: Acer XV322QU Pbmiipprzx | B30: AM | C30: - | D30: 250 | E30: ips | F30: 330 | G30: 1 | H30: 170 | I30: 713 | J30: 7 | K30: 9.5 | L30: 13.5 | M30: да | N30: =2*J30 -> 14 | O30: =K30*2 -> 19 | P30: =J30*2+5 -> 19
A31: AOC Q32V5CE | B31: CU | C31: - | D31: 276 | E31: va | F31: 300 | G31: 4 | H31: 75 | I31: 714 | J31: 7 | K31: 8.5 | L31: 11 | M31: да | N31: =2*J31 -> 14 | O31: =K31*2 -> 17 | P31: =J31*2+5 -> 19
A32: Dell P3223DE | B32: CU | C32: + | D32: 338 | E32: ips | F32: 350 | G32: 5 | H32: 76 | I32: 713 | J32: 7.1 | K32: 11.7 | L32: 15.3 | M32: - | N32: =2*J32 -> 14.2 | O32: =K32*2 -> 23.4 | P32: =J32*2+5 -> 19.2
A33: gigabyte m32q | B33: NE | C33: + | D33: 360 | E33: ips | F33: 350 | G33: 1 | H33: 170 | I33: 716 | J33: 7.1 | K33: 10.2 | L33: 13.6 | M33: да | N33: =2*J33 -> 14.2 | O33: =K33*2 -> 20.4 | P33: =J33*2+5 -> 19.2
A34: iiyama GB3271QSU-B1 | B34: CU | C34: - | D34: 301 | E34: ips | F34: 400 | G34: 1 | H34: 165 | I34: 714 | J34: 7.3 | K34: 11.3 | L34: 14.1 | M34: да | N34: =2*J34 -> 14.6 | O34: =K34*2 -> 22.6 | P34: =J34*2+5 -> 19.6
A35: GIGBAYTE AORUS FI32Q | B35: CU | C35: + | D35: 293 | E35: ips | F35: 350 | G35: 1 | H35: 170 | I35: 718 | J35: 7.6 | K35: 10.8 | L35: 15.2 | M35: да? | N35: =2*J35 -> 15.2 | O35: =K35*2 -> 21.6 | P35: =J35*2+5 -> 20.2
A36: GIGBAYTE AORUS FI32Q | B36: CU | C36: - | D36: 293 | E36: ips | F36: 350 | G36: 1 | H36: 170 | I36: 718 | J36: 7.6 | K36: 10.8 | L36: 15.2 | M36: да? | N36: =2*J36 -> 15.2 | O36: =K36*2 -> 21.6 | P36: =J36*2+5 -> 20.2
A37: Acer XV322QU KVbmiiphzx | B37: AM | C37: - | D37: 317 | E37: ips | F37: 330 | G37: 1 | H37: 170 | I37: 716 | J37: 7.7 | K37: 10.3 | L37: 14 | M37: да | N37: =2*J37 -> 15.4 | O37: =K37*2 -> 20.6 | P37: =J37*2+5 -> 20.4
A40: Acer EB321HQU Cbidpx | B40: AM | C40: - | D40: 295 | E40: ips | F40: 300 | G40: 4 | H40: 60 | I40: 726 | J40: 5.8 | K40: 6.4 | L40: 8.6 | M40: - | N40: =2*J40 -> 11.6 | O40: =K40*2 -> 12.8 | P40: =J40*2+5 -> 16.6
A41: Acer EB321HQUC | B41: CU | C41: - | D41: 210 | E41: ips | F41: 300 | G41: 4 | H41: 60 | I41: 726 | J41: 5.8 | K41: 6.4 | L41: 8.6 | M41: - | N41: =2*J41 -> 11.6 | O41: =K41*2 -> 12.8 | P41: =J41*2+5 -> 16.6
A42: viewsonic XG320Q | B42: NE | C42: + | D42: 358 | E42: ips | F42: 400 | G42: 1 | H42: 175 | I42: 726 | J42: 8 | K42: 11 | L42: 15 | M42: - | N42: =2*J42 -> 16 | O42: =K42*2 -> 22 | P42: =J42*2+5 -> 21
A43: ViewSonic ELITE XG320Q | B43: AM | C43: - | D43: 358 | E43: ips | F43: 500 | G43: 1 | H43: 175 | I43: 726 | J43: 9 | K43: 14.56 | L43: 18 | M43: - | N43: =2*J43 -> 18 | O43: =K43*2 -> 29.12 | P43: =J43*2+5 -> 23
A44: AOC Q32P2CA | B44: CU | C44: + | D44: 247 | E44: ips | F44: 250 | G44: 4 | H44: 75 | I44: 730 | J44: 6.1 | K44: 9.4 | L44: 12.6 | M44: да | N44: =2*J44 -> 12.2 | O44: =K44*2 -> 18.8 | P44: =J44*2+5 -> 17.2
A45: AOC Q32V3S | B45: AM | C45: - | D45: 209 | E45: va | F45: 250 | G45: 4 | H45: 75 | I45: 730 | J45: 5.65 | K45: 6.79 | L45: 9.6 | M45: - | N45: =2*J45 -> 11.3 | O45: =K45*2 -> 13.58 | P45: =J45*2+5 -> 16.3
A46: AOC Q32V4 | B46: CU | C46: - | D46: 211 | E46: ips | F46: 250 | G46: 4 | H46: 75 | I46: 730 | J46: 5.7 | K46: 6.8 | L46: 7.5 | M46: да | N46: =2*J46 -> 11.4 | O46: =K46*2 -> 13.6 | P46: =J46*2+5 -> 16.4
A47: ViewSonic VX3211-4K-MHD | B47: NE | C47: - | D47: 330 | E47: va | F47: 300 | G47: 3 | H47: 60 | I47: 730 | J47: 5.8 | K47: 6.6 | L47: 10.1 | M47: да | N47: =2*J47 -> 11.6 | O47: =K47*2 -> 13.2 | P47: =J47*2+5 -> 16.6
A48: iiyama ProLite XB3270QS-B1 | B48: CU | C48: + | D48: 242 | E48: ips | F48: 250 | G48: 4 | H48: 75 | I48: 730 | J48: 5.9 | K48: 8.9 | L48: 11.5 | M48: да | N48: =2*J48 -> 11.8 | O48: =K48*2 -> 17.8 | P48: =J48*2+5 -> 16.8
A49: AOC Q32E2N | B49: CU | C49: - | D49: 229 | E49: va | F49: 250 | G49: 4 | H49: 75 | I49: 730 | J49: 6 | K49: 7.4 | L49: 10.2 | M49: да | N49: =2*J49 -> 12 | O49: =K49*2 -> 14.8 | P49: =J49*2+5 -> 17
A50: AOC Q32P2 | B50: CU | C50: + | D50: 308 | E50: ips | F50: 250 | G50: 4 | H50: 75 | I50: 730 | J50: 6.1 | K50: 9.5 | L50: 12.3 | M50: да | N50: =2*J50 -> 12.2 | O50: =K50*2 -> 19 | P50: =J50*2+5 -> 17.2
A51: Viewsonic VX3211-2K-MHD | B51: AM | C51: - | D51: 240 | E51: ips | F51: 250 | G51: 3 | H51: 75 | I51: 730 | J51: 6.2 | K51: 7 | L51: 10.2 | M51: да | N51: =2*J51 -> 12.4 | O51: =K51*2 -> 14 | P51: =J51*2+5 -> 17.4
A52: Viewsonic VX3211-2K-MHD | B52: CU | C52: - | D52: 244 | E52: ips | F52: 250 | G52: 3 | H52: 75 | I52: 730 | J52: 6.2 | K52: 7 | L52: 10.2 | M52: да | N52: =2*J52 -> 12.4 | O52: =K52*2 -> 14 | P52: =J52*2+5 -> 17.4
A53: Philips 325B1L | B53: CU | C53: + | D53: 286 | E53: ips | F53: 250 | G53: 4 | H53: 75 | I53: 730 | J53: 6.9 | K53: 10.7 | L53: 13.6 | M53: да | N53: =2*J53 -> 13.8 | O53: =K53*2 -> 21.4 | P53: =J53*2+5 -> 18.8
A54: Philips 325E8 | B54: AM | C54: - | D54: 220 | E54: va | F54: 250 | G54: 5 | H54: 76 | I54: 731 | J54: 6.46 | K54: 6.77 | L54: 9.5 | M54: - | N54: =2*J54 -> 12.92 | O54: =K54*2 -> 13.54 | P54: =J54*2+5 -> 17.92
A55: BenQ PD3200Q | B55: CU | C55: + | D55: 323 | E55: va | F55: 300 | G55: 4 | H55: 60 | I55: 740 | J55: 8.5 | K55: 12.5 | L55: 16.5 | M55: да | N55: =2*J55 -> 17 | O55: =K55*2 -> 25 | P55: =J55*2+5 -> 22
